[Event "CZE-ch Open 2019"]
[Site "Ostrava"]
[Date "2019.05.01"]
[Round "5.19"]
[White "Neumann, Filip"]
[Black "Belunek, Vladimir"]
[Result "1/2-1/2"]
[ECO "C50"]
[WhiteElo "2076"]
[BlackElo "2201"]
[Annotator "NA"]
[PlyCount "76"]
[EventDate "2019.04.27"]
[EventType "swiss"]
[EventCountry "CZE"]
[SourceTitle "playchess.com"]
[Source "ChessBase"]
[SourceQuality "1"]
[TimeControl "40/5400+30:1800+30"]

1. e4 {[%emt 0:00:00]} e5 {[%emt 0:00:00]} 2. Nf3 {[%emt 0:00:00]} Nc6 {[%emt 0:00:00]} 3. Bc4 {[%emt 0:00:00]} Bc5 {[%emt 0:00:04]} 4. O-O {[%emt 0:00:04]} Nf6 {[%emt 0:00:12]} 5. d3 {[%emt 0:00:06]} d6 {[%emt 0:00:27]} 6. c3 {[%emt 0:00:12]} a6 {[%emt 0:04:41]} 7. a4 {[%emt 0:00:14]} h6 {[%emt 0:01:45]} 8. Na3 {[%emt 0:01:03]} O-O {[%emt 0:00:16]} 9. Nc2 {[%emt 0:00:09]} Ba7 {[%emt 0:15:01]} 10. Be3 {[%emt 0:01:49]} d5 {[%emt 0:21:45]} 11. exd5 {[%emt 0:06:12]} Nxd5 {[%emt 0:00:10]} 12. Bxa7 {[%emt 0:00:25]} Rxa7 {[%emt 0:00:08]} 13. Re1 {[%emt 0:00:59]} Re8 {[%emt 0:10:01]} 14. d4 {[%emt 0:07:13]} Nb6 {[%emt 0:10:27]} 15. Bb3 {[%emt 0:01:48]} exd4 {[%emt 0:01:19]} 16. Rxe8+ {[%emt 0:01:10]} Qxe8 {[%emt 0:00:06]} 17. Nfxd4 {[%emt 0:00:29]} Na5 {[%emt 0:05:04]} 18. Ne3 {[%emt 0:01:33]} c5 {[%emt 0:07:56]} 19. Ndf5 {[%emt 0:01:41]} Bxf5 {[%emt 0:00:39]} 20. Nxf5 {[%emt 0:00:15]} Nxb3 {[%emt 0:02:13]} 21. Qxb3 {[%emt 0:00:13]} Qe6 {[%emt 0:01:31]} 22. Qxe6 {[%emt 0:02:32]} fxe6 {[%emt 0:00:04]} 23. Nd6 {[%emt 0:01:08]} Nd5 {[%emt 0:05:20]} 24. Re1 {[%emt 0:04:11]} b5 {[%emt 0:02:43]} 25. axb5 {[%emt 0:11:05]} axb5 {[%emt 0:00:08]} 26. Nxb5 {[%emt 0:00:50]} Ra2 {[%emt 0:01:59]} 27. b3 {[%emt 0:01:18]} Rb2 {[%emt 0:00:42]} 28. c4 {[%emt 0:01:04]} Rxb3 {[%emt 0:01:33]} 29. cxd5 {[%emt 0:00:14]} Rxb5 {[%emt 0:00:03]} 30. dxe6 {[%emt 0:00:24]} Kf8 {[%emt 0:00:07]} 31. f4 {[%emt 0:00:43]} c4 {[%emt 0:00:32]} 32. Rc1 {[%emt 0:00:24]} Ke7 {[%emt 0:03:28]} 33. Rxc4 {[%emt 0:00:07]} Kxe6 {[%emt 0:00:03]} 34. Rc7 {[%emt 0:00:31]} g5 {[%emt 0:00:50]} 35. Rh7 {[%emt 0:01:02]} Kf5 {[%emt 0:01:54]} 36. Rxh6 {[%emt 0:00:18]} Rb1+ {[%emt 0:00:30]} 37. Kf2 {[%emt 0:00:07]} Rb2+ {[%emt 0:00:15]} 38. Kg1 {[%emt 0:01:41]} Rb1+ 1/2-1/2

[Event "CZE-ch Open 2019"]
[Site "Ostrava"]
[Date "2019.05.01"]
[Round "5.20"]
[White "Malinovsky, Petr"]
[Black "Vrana, Frantisek"]
[Result "0-1"]
[ECO "E46"]
[WhiteElo "2003"]
[BlackElo "2267"]
[Annotator "NA"]
[PlyCount "104"]
[EventDate "2019.04.27"]
[EventType "swiss"]
[EventCountry "CZE"]
[SourceTitle "playchess.com"]
[Source "ChessBase"]
[SourceQuality "1"]
[TimeControl "40/5400+30:1800+30"]

1. d4 {[%emt 0:00:00]} Nf6 {[%emt 0:00:00]} 2. c4 {[%emt 0:00:00]} e6 {[%emt 0:00:00]} 3. Nc3 {[%emt 0:00:22]} Bb4 {[%emt 0:00:00]} 4. e3 {[%emt 0:00:32]} O-O {[%emt 0:00:11]} 5. Nge2 {[%emt 0:02:19]} Re8 {[%emt 0:00:53]} 6. a3 {[%emt 0:01:01]} Bf8 {[%emt 0:00:11]} 7. Ng3 {[%emt 0:06:18]} d6 {[%emt 0:05:52]} 8. Bd3 {[%emt 0:02:22]} Nbd7 {[%emt 0:02:39]} 9. O-O {[%emt 0:05:18]} c5 {[%emt 0:02:25]} 10. b3 {[%emt 0:03:08]} b6 {[%emt 0:01:43]} 11. Bb2 {[%emt 0:00:53]} Bb7 {[%emt 0:00:11]} 12. Qe2 {[%emt 0:02:58]} Qc7 {[%emt 0:01:50]} 13. Rac1 {[%emt 0:01:28]} a6 {[%emt 0:00:49]} 14. Bb1 {[%emt 0:01:14]} Rad8 {[%emt 0:01:58]} 15. Rfd1 {[%emt 0:05:19]} Qb8 {[%emt 0:02:19]} 16. Qc2 {[%emt 0:05:36]} g6 {[%emt 0:09:22]} 17. Rd2 {[%emt 0:08:37]} Qa8 {[%emt 0:03:23]} 18. f3 {[%emt 0:03:04]} Bh6 {[%emt 0:02:21]} 19. Re1 {[%emt 0:02:24]} d5 {[%emt 0:02:52]} 20. Rde2 {[%emt 0:03:30]} cxd4 {[%emt 0:00:39]} 21. exd4 {[%emt 0:00:17]} Rc8 {[%emt 0:00:31]} 22. Qd3 {[%emt 0:02:36]} Qb8 {[%emt 0:01:19]} 23. Bc1 {[%emt 0:05:29]} Bf8 {[%emt 0:01:27]} 24. Ba2 {[%emt 0:05:50]} a5 {[%emt 0:05:03]} 25. Nb5 {[%emt 0:01:55]} Bc6 {[%emt 0:02:58]} 26. a4 {[%emt 0:02:26]} Qb7 {[%emt 0:05:23]} 27. Bf4 {[%emt 0:02:38]} Bxb5 {[%emt 0:00:38]} 28. axb5 {[%emt 0:00:23]} Ra8 {[%emt 0:00:22]} 29. h4 {[%emt 0:03:08]} a4 {[%emt 0:05:01]} 30. h5 {[%emt 0:01:22]} axb3 {[%emt 0:00:58]} 31. Bxb3 {[%emt 0:01:42]} dxc4 {[%emt 0:00:42]} 32. Bxc4 {[%emt 0:01:25]} Nd5 {[%emt 0:00:20]} 33. Bc1 {[%emt 0:04:06]} Nb4 {[%emt 0:06:10]} 34. Qb1 {[%emt 0:01:00]} Qc7 {[%emt 0:01:18]} 35. hxg6 {[%emt 0:00:44]} hxg6 {[%emt 0:02:20]} 36. Bxe6 {[%emt 0:07:52]} Qxg3 {[%emt 0:01:12]} 37. Bxf7+ {[%emt 0:00:12]} Kxf7 {[%emt 0:04:54]} 38. Qb3+ {[%emt 0:00:13]} Kg7 {[%emt 0:01:14]} 39. Rxe8 {[%emt 0:00:10]} Rxe8 {[%emt 0:00:52]} 40. Rxe8 {[%emt 0:00:13]} Qd6 {[%emt 0:00:37]} 41. d5 {[%emt 0:13:28]} Nxd5 {[%emt 0:03:41]} 42. Bb2+ {[%emt 0:02:21]} Kf7 {[%emt 0:01:38]} 43. Rc8 {[%emt 0:04:07]} Nc5 {[%emt 0:00:59]} 44. Qa2 {[%emt 0:04:00]} Qe6 {[%emt 0:02:09]} 45. Qa7+ {[%emt 0:05:10]} Be7 {[%emt 0:02:02]} 46. Rc6 {[%emt 0:01:06]} Qe3+ {[%emt 0:02:37]} 47. Kh2 {[%emt 0:00:27]} Qd2 {[%emt 0:02:56]} 48. Ba1 {[%emt 0:01:43]} Ne6 {[%emt 0:03:22]} 49. Qd7 {[%emt 0:02:29]} Qh6+ {[%emt 0:00:29]} 50. Kg1 {[%emt 0:00:47]} Qe3+ {[%emt 0:00:08]} 51. Kh2 {[%emt 0:00:29]} Ndf4 {[%emt 0:00:38]} 52. Qd1 {[%emt 0:05:13]} Ne2 0-1

[Event "CZE-ch Open 2019"]
[Site "Ostrava"]
[Date "2019.05.01"]
[Round "5.21"]
[White "Vesselovsky, Serguei"]
[Black "Babula, Milan"]
[Result "0-1"]
[ECO "C10"]
[WhiteElo "2335"]
[BlackElo "2204"]
[Annotator "ChessBase"]
[PlyCount "150"]
[EventDate "2019.04.27"]
[EventType "swiss"]
[EventCountry "CZE"]
[SourceTitle "playchess.com"]
[Source "ChessBase"]
[SourceQuality "1"]
[TimeControl "40/5400+30:1800+30"]

1. e4 {[%emt 0:00:00]} e6 {[%emt 0:00:00]} 2. d4 {[%emt 0:00:00]} d5 {[%emt 0:00:00]} 3. Nc3 {[%emt 0:00:00]} Be7 {[%emt 0:00:00]} 4. Bd3 {[%emt 0:00:31]} b6 {[%emt 0:00:27]} 5. Nf3 {[%emt 0:01:42]} Nf6 {[%emt 0:00:14]} 6. O-O {[%emt 0:04:16]} Bb7 {[%emt 0:06:43]} 7. Qe2 {[%emt 0:20:07]} dxe4 {[%emt 0:05:40]} 8. Nxe4 {[%emt 0:00:11]} Nxe4 {[%emt 0:04:40]} 9. Bxe4 {[%emt 0:00:04]} Bxe4 {[%emt 0:00:06]} 10. Qxe4 {[%emt 0:00:07]} Nd7 {[%emt 0:00:03]} 11. Bf4 {[%emt 0:23:22]} O-O {[%emt 0:03:50]} 12. c4 {[%emt 0:02:42]} Nf6 {[%emt 0:11:30]} 13. Qe2 {[%emt 0:00:17]} Bd6 {[%emt 0:02:24]} 14. Bg5 {[%emt 0:04:47]} h6 {[%emt 0:01:12]} 15. Bh4 {[%emt 0:00:58]} Be7 {[%emt 0:17:34]} 16. Rad1 {[%emt 0:00:20]} Nd7 {[%emt 0:00:37]} 17. Bg3 {[%emt 0:00:51]} Bd6 {[%emt 0:00:01]} 18. Ne5 {[%emt 0:07:42]} Bxe5 {[%emt 0:03:24]} 19. dxe5 {[%emt 0:02:00]} Qe7 {[%emt 0:21:05]} 20. Bh4 {[%emt 0:00:34]} g5 {[%emt 0:06:07]} 21. Bg3 {[%emt 0:00:07]} Rfd8 {[%emt 0:00:07]} 22. Qh5 {[%emt 0:11:31]} Kg7 {[%emt 0:00:46]} 23. f4 {[%emt 0:05:20]} Nf8 {[%emt 0:00:26]} 24. fxg5 {[%emt 0:03:28]} hxg5 {[%emt 0:00:05]} 25. h4 {[%emt 0:06:24]} Rxd1 {[%emt 0:00:41]} 26. Rxd1 {[%emt 0:00:32]} Rd8 {[%emt 0:00:09]} 27. Rxd8 {[%emt 0:02:48]} Qxd8 {[%emt 0:00:02]} 28. Qg4 {[%emt 0:00:30]} Nh7 {[%emt 0:00:36]} 29. hxg5 {[%emt 0:01:03]} Qxg5 {[%emt 0:00:22]} 30. Qxg5+ {[%emt 0:00:40]} Nxg5 {[%emt 0:00:01]} 31. Bh4 {[%emt 0:01:32]} Kg6 {[%emt 0:00:04]} 32. Kf2 {[%emt 0:00:36]} Kf5 {[%emt 0:02:20]} 33. Ke3 {[%emt 0:00:34]} c6 {[%emt 0:07:14]} 34. Bg3 {[%emt 0:00:17]} Ne4 {[%emt 0:05:23]} 35. Bh2 {[%emt 0:00:50]} Nc5 {[%emt 0:00:08]} 36. Kf3 {[%emt 0:00:40]} Nd3 {[%emt 0:00:13]} 37. g4+ {[%emt 0:00:17]} Kg6 {[%emt 0:00:11]} 38. b3 {[%emt 0:00:45]} Nc1 {[%emt 0:00:09]} 39. Bf4 {[%emt 0:00:33]} Nxa2 {[%emt 0:00:02]} 40. Bd2 {[%emt 0:00:22]} c5 {[%emt 0:00:58]} 41. Ke4 {[%emt 0:01:52]} Nb4 {[%emt 0:02:45]} 42. Bf4 {[%emt 0:10:48]} Nc6 {[%emt 0:02:36]} 43. Kd3 {[%emt 0:04:43]} Kg7 {[%emt 0:08:13]} 44. Kc3 {[%emt 0:02:47]} Kf8 {[%emt 0:05:47]} 45. Kd3 {[%emt 0:01:01]} Ke8 {[%emt 0:02:57]} 46. Bg3 {[%emt 0:00:29]} Kd7 {[%emt 0:01:34]} 47. Bf4 {[%emt 0:00:53]} Kc7 {[%emt 0:01:09]} 48. Bg3 {[%emt 0:02:06]} Ne7 {[%emt 0:01:26]} 49. Ke4 {[%emt 0:00:48]} Nc6 {[%emt 0:02:34]} 50. Kd3 {[%emt 0:01:21]} a6 {[%emt 0:00:46]} 51. Bf4 {[%emt 0:02:33]} b5 {[%emt 0:00:11]} 52. Kc3 {[%emt 0:02:14]} Kb6 {[%emt 0:00:27]} 53. Bg3 {[%emt 0:00:54]} a5 {[%emt 0:01:00]} 54. cxb5 {[%emt 0:00:40]} Kxb5 {[%emt 0:00:02]} 55. Bf4 {[%emt 0:00:20]} Nb4 {[%emt 0:04:22]} 56. Bd2 {[%emt 0:00:40]} Nd5+ {[%emt 0:00:34]} 57. Kd3 {[%emt 0:00:10]} Nb6 {[%emt 0:00:21]} 58. Ke4 {[%emt 0:01:32]} c4 {[%emt 0:00:55]} 59. bxc4+ {[%emt 0:00:12]} Nxc4 {[%emt 0:00:02]} 60. Bc3 {[%emt 0:00:15]} a4 {[%emt 0:00:47]} 61. Kf4 {[%emt 0:00:33]} a3 {[%emt 0:00:47]} 62. Ba1 {[%emt 0:01:09]} Nd2 {[%emt 0:00:38]} 63. Kg5 {[%emt 0:00:44]} Nb3 {[%emt 0:00:03]} 64. Kf6 {[%emt 0:01:26]} Nxa1 {[%emt 0:00:04]} 65. Kxf7 {[%emt 0:00:05]} Nc2 {[%emt 0:00:48]} 66. g5 {[%emt 0:00:18]} Nd4 {[%emt 0:00:08]} 67. g6 {[%emt 0:00:29]} Nf5 {[%emt 0:00:02]} 68. Kxe6 {[%emt 0:00:11]} Nh6 {[%emt 0:00:01]} 69. Kd7 {[%emt 0:00:53]} a2 {[%emt 0:00:01]} 70. e6 {[%emt 0:00:07]} a1=Q {[%emt 0:00:08]} 71. e7 {[%emt 0:00:10]} Qa7+ {[%emt 0:00:36]} 72. Ke8 {[%emt 0:00:22]} Qa8+ {[%emt 0:00:26]} 73. Kd7 {[%emt 0:00:02]} Qc6+ {[%emt 0:00:16]} 74. Kd8 {[%emt 0:00:03]} Qd6+ {[%emt 0:00:08]} 75. Ke8 {[%emt 0:00:10]} Nf5 {[%emt 0:00:10]} 0-1

[Event "CZE-ch Open 2019"]
[Site "Ostrava"]
[Date "2019.05.01"]
[Round "5.22"]
[White "Michenka, Jozef"]
[Black "Jun, Rudolf Jr."]
[Result "1/2-1/2"]
[ECO "E70"]
[WhiteElo "2287"]
[BlackElo "2138"]
[Annotator "NA"]
[PlyCount "93"]
[EventDate "2019.04.27"]
[EventType "swiss"]
[EventCountry "CZE"]
[SourceTitle "playchess.com"]
[Source "ChessBase"]
[SourceQuality "1"]
[TimeControl "40/5400+30:1800+30"]

1. d4 {[%emt 0:00:00]} Nf6 {[%emt 0:00:00]} 2. c4 {[%emt 0:00:00]} g6 {[%emt 0:00:00]} 3. Nc3 {[%emt 0:00:14]} Bg7 {[%emt 0:00:00]} 4. e4 {[%emt 0:00:05]} d6 {[%emt 0:00:04]} 5. Bd3 {[%emt 0:00:07]} O-O {[%emt 0:00:22]} 6. Nge2 {[%emt 0:00:04]} e5 {[%emt 0:00:11]} 7. d5 {[%emt 0:00:07]} c5 {[%emt 0:00:52]} 8. O-O {[%emt 0:00:30]} Ne8 {[%emt 0:00:28]} 9. f4 {[%emt 0:03:25]} exf4 {[%emt 0:04:39]} 10. Bxf4 {[%emt 0:00:08]} Nd7 {[%emt 0:00:09]} 11. Ng3 {[%emt 0:00:38]} Ne5 {[%emt 0:01:59]} 12. Be2 {[%emt 0:00:09]} h6 {[%emt 0:06:07]} 13. Be3 {[%emt 0:07:36]} Bd7 {[%emt 0:02:52]} 14. Qd2 {[%emt 0:01:29]} Kh7 {[%emt 0:09:08]} 15. Rf4 {[%emt 0:03:09]} a6 {[%emt 0:06:22]} 16. a4 {[%emt 0:00:16]} Nf6 {[%emt 0:01:45]} 17. h3 {[%emt 0:01:30]} Ng8 {[%emt 0:06:42]} 18. b3 {[%emt 0:25:31]} Ne7 {[%emt 0:00:55]} 19. Raf1 {[%emt 0:05:14]} Qb6 {[%emt 0:02:43]} 20. Qc2 {[%emt 0:00:48]} Rae8 {[%emt 0:01:37]} 21. R4f2 {[%emt 0:08:50]} f5 {[%emt 0:08:45]} 22. Bd1 {[%emt 0:03:11]} fxe4 {[%emt 0:01:23]} 23. Rxf8 {[%emt 0:00:21]} Rxf8 {[%emt 0:00:22]} 24. Rxf8 {[%emt 0:00:46]} Bxf8 {[%emt 0:00:05]} 25. Ncxe4 {[%emt 0:00:31]} Bg7 {[%emt 0:00:40]} 26. Qf2 {[%emt 0:03:33]} Nf5 {[%emt 0:03:20]} 27. Nxf5 {[%emt 0:00:25]} Bxf5 {[%emt 0:00:08]} 28. Ng3 {[%emt 0:02:00]} Bd3 {[%emt 0:00:48]} 29. Kh2 {[%emt 0:02:27]} Qd8 {[%emt 0:01:05]} 30. Ne2 {[%emt 0:09:19]} Bf5 {[%emt 0:05:35]} 31. Nf4 {[%emt 0:03:41]} Nd3 {[%emt 0:02:14]} 32. Nxd3 {[%emt 0:00:24]} Bxd3 {[%emt 0:00:13]} 33. Bf4 {[%emt 0:00:46]} Qf6 {[%emt 0:05:55]} 34. Qg3 {[%emt 0:04:43]} Be4 {[%emt 0:02:16]} 35. Bf3 {[%emt 0:06:20]} Bxf3 {[%emt 0:02:23]} 36. Qxf3 {[%emt 0:00:03]} Qe7 {[%emt 0:03:24]} 37. Qg3 {[%emt 0:02:36]} Bf8 {[%emt 0:00:11]} 38. Qg4 {[%emt 0:01:49]} Bg7 {[%emt 0:02:59]} 39. Qg3 {[%emt 0:02:46]} Bf8 {[%emt 0:00:08]} 40. Qe3 {[%emt 0:01:03]} Qxe3 {[%emt 0:02:41]} 41. Bxe3 {[%emt 0:30:01]} a5 {[%emt 0:31:34]} 42. Kg3 {[%emt 0:00:28]} Be7 {[%emt 0:00:22]} 43. Kf3 {[%emt 0:01:05]} g5 {[%emt 0:02:53]} 44. Ke4 {[%emt 0:02:13]} Kg6 {[%emt 0:00:55]} 45. g4 {[%emt 0:00:25]} b6 {[%emt 0:01:25]} 46. Bf2 {[%emt 0:00:11]} Bf6 {[%emt 0:02:01]} 47. Bg3 {[%emt 0:00:14]} 1/2-1/2

[Event "CZE-ch Open 2019"]
[Site "Ostrava"]
[Date "2019.05.01"]
[Round "5.23"]
[White "Malik, Jan"]
[Black "Valencik, Jozef"]
[Result "1-0"]
[ECO "C00"]
[WhiteElo "2286"]
[BlackElo "2057"]
[Annotator "NA"]
[PlyCount "61"]
[EventDate "2019.04.27"]
[EventType "swiss"]
[EventCountry "CZE"]
[SourceTitle "playchess.com"]
[Source "ChessBase"]
[SourceQuality "1"]
[TimeControl "40/5400+30:1800+30"]

1. e4 {[%emt 0:00:07]} e6 {[%emt 0:00:00]} 2. d3 {[%emt 0:00:04]} d5 {[%emt 0:01:05]} 3. Nd2 {[%emt 0:00:01]} c5 {[%emt 0:01:07]} 4. Ngf3 {[%emt 0:00:09]} Nc6 {[%emt 0:00:23]} 5. g3 {[%emt 0:00:02]} Nf6 {[%emt 0:05:30]} 6. Bg2 {[%emt 0:00:02]} Be7 {[%emt 0:00:24]} 7. O-O {[%emt 0:00:03]} O-O {[%emt 0:01:00]} 8. e5 {[%emt 0:00:35]} Nd7 {[%emt 0:00:12]} 9. Re1 {[%emt 0:00:01]} Qc7 {[%emt 0:01:13]} 10. Qe2 {[%emt 0:00:01]} b5 {[%emt 0:03:16]} 11. Nf1 {[%emt 0:00:09]} Nd4 {[%emt 0:04:28]} 12. Nxd4 {[%emt 0:00:44]} cxd4 {[%emt 0:03:05]} 13. h4 {[%emt 0:00:01]} Bb4 {[%emt 0:06:10]} 14. Bd2 {[%emt 0:00:02]} Bxd2 {[%emt 0:04:44]} 15. Qxd2 {[%emt 0:00:01]} f6 {[%emt 0:15:16]} 16. exf6 {[%emt 0:06:30]} Nxf6 {[%emt 0:00:43]} 17. Nh2 {[%emt 0:02:07]} Bd7 {[%emt 0:05:51]} 18. Nf3 {[%emt 0:03:22]} Rac8 {[%emt 0:14:39]} 19. Re2 {[%emt 0:01:56]} Qc5 {[%emt 0:09:28]} 20. Ne5 {[%emt 0:04:02]} Rce8 {[%emt 0:03:37]} 21. Bh3 {[%emt 0:00:17]} Bc8 {[%emt 0:00:27]} 22. Rae1 {[%emt 0:00:30]} Kh8 {[%emt 0:03:16]} 23. a3 {[%emt 0:01:33]} Qb6 {[%emt 0:06:15]} 24. Qg5 {[%emt 0:00:34]} Nd7 {[%emt 0:01:57]} 25. Qh5 {[%emt 0:06:56]} Nxe5 {[%emt 0:02:59]} 26. Rxe5 {[%emt 0:00:03]} Qc6 {[%emt 0:01:25]} 27. Bf5 {[%emt 0:02:51]} g6 {[%emt 0:00:52]} 28. Bxg6 {[%emt 0:00:07]} Re7 {[%emt 0:00:26]} 29. Qh6 {[%emt 0:09:58]} Rg8 {[%emt 0:02:07]} 30. h5 {[%emt 0:10:54]} Qxc2 {[%emt 0:01:47]} 31. Bxh7 {[%emt 0:01:11]} 1-0

[Event "CZE-ch Open 2019"]
[Site "Ostrava"]
[Date "2019.05.01"]
[Round "5.24"]
[White "Kanakova, Natalie"]
[Black "Vybiral, Zdenek"]
[Result "1/2-1/2"]
[ECO "C03"]
[WhiteElo "2202"]
[BlackElo "2274"]
[Annotator "NA"]
[PlyCount "65"]
[EventDate "2019.04.27"]
[EventType "swiss"]
[EventCountry "CZE"]
[SourceTitle "playchess.com"]
[Source "ChessBase"]
[SourceQuality "1"]
[TimeControl "40/5400+30:1800+30"]

1. e4 {[%emt 0:00:00]} e6 {[%emt 0:00:00]} 2. d4 {[%emt 0:00:00]} d5 {[%emt 0:00:00]} 3. Nd2 {[%emt 0:00:10]} a6 {[%emt 0:00:00]} 4. Ngf3 {[%emt 0:00:28]} c5 {[%emt 0:00:00]} 5. c3 {[%emt 0:04:01]} Nc6 {[%emt 0:00:16]} 6. Bd3 {[%emt 0:01:08]} cxd4 {[%emt 0:00:40]} 7. cxd4 {[%emt 0:00:40]} dxe4 {[%emt 0:00:06]} 8. Nxe4 {[%emt 0:00:33]} Bb4+ {[%emt 0:02:56]} 9. Nc3 {[%emt 0:03:02]} Nf6 {[%emt 0:00:15]} 10. O-O {[%emt 0:00:39]} O-O {[%emt 0:00:05]} 11. a3 {[%emt 0:00:38]} Be7 {[%emt 0:00:30]} 12. Bc2 {[%emt 0:05:13]} b5 {[%emt 0:00:21]} 13. Qd3 {[%emt 0:02:21]} Bb7 {[%emt 0:00:44]} 14. Bg5 {[%emt 0:01:47]} g6 {[%emt 0:00:13]} 15. b4 {[%emt 0:07:12]} Qb6 {[%emt 0:24:20]} 16. Rfd1 {[%emt 0:09:56]} Rfd8 {[%emt 0:00:19]} 17. Be3 {[%emt 0:01:57]} Qc7 {[%emt 0:00:13]} 18. Bb3 {[%emt 0:02:49]} Rd7 {[%emt 0:09:07]} 19. Rac1 {[%emt 0:03:48]} Rad8 {[%emt 0:06:05]} 20. Qe2 {[%emt 0:05:17]} Qb8 {[%emt 0:00:47]} 21. h3 {[%emt 0:01:07]} Qa8 {[%emt 0:05:45]} 22. Ng5 {[%emt 0:08:18]} Rd6 {[%emt 0:10:14]} 23. Rd2 {[%emt 0:04:12]} Bf8 {[%emt 0:02:09]} 24. Nge4 {[%emt 0:07:06]} Nxe4 {[%emt 0:01:13]} 25. Nxe4 {[%emt 0:00:05]} Nxd4 {[%emt 0:15:49]} 26. Nf6+ {[%emt 0:00:32]} Kh8 {[%emt 0:00:27]} 27. Bxd4 {[%emt 0:01:01]} Rxd4 {[%emt 0:00:07]} 28. Rxd4 {[%emt 0:00:24]} Rxd4 {[%emt 0:00:05]} 29. Qe5 {[%emt 0:02:21]} Qd8 {[%emt 0:00:28]} 30. Ne8+ {[%emt 0:04:44]} Kg8 {[%emt 0:00:22]} 31. Nf6+ {[%emt 0:18:56]} Kh8 {[%emt 0:00:21]} 32. Ne8+ {[%emt 0:00:34]} Kg8 {[%emt 0:00:14]} 33. Nf6+ {[%emt 0:01:45]} 1/2-1/2

[Event "CZE-ch Open 2019"]
[Site "Ostrava"]
[Date "2019.05.01"]
[Round "5.25"]
[White "Didi, Jan"]
[Black "Freisler, Pavel"]
[Result "0-1"]
[ECO "B02"]
[WhiteElo "2025"]
[BlackElo "2245"]
[Annotator "ChessBase"]
[PlyCount "134"]
[EventDate "2019.04.27"]
[EventType "swiss"]
[EventCountry "CZE"]
[SourceTitle "playchess.com"]
[Source "ChessBase"]
[SourceQuality "1"]
[TimeControl "40/5400+30:1800+30"]

1. e4 {[%emt 0:00:00]} Nf6 {[%emt 0:00:00]} 2. e5 {[%emt 0:00:39]} Nd5 {[%emt 0:00:00]} 3. Nc3 {[%emt 0:00:57]} Nxc3 {[%emt 0:01:33]} 4. bxc3 {[%emt 0:00:11]} d6 {[%emt 0:00:54]} 5. exd6 {[%emt 0:00:35]} cxd6 {[%emt 0:01:00]} 6. d4 {[%emt 0:00:21]} g6 {[%emt 0:00:22]} 7. Nf3 {[%emt 0:03:35]} Bg7 {[%emt 0:00:05]} 8. Be2 {[%emt 0:01:55]} Nc6 {[%emt 0:06:26]} 9. O-O {[%emt 0:00:13]} O-O {[%emt 0:00:06]} 10. Be3 {[%emt 0:11:03]} e5 {[%emt 0:03:07]} 11. Qd2 {[%emt 0:07:54]} Qc7 {[%emt 0:11:32]} 12. Rad1 e4 {[%emt 0:09:04]} 13. Ne1 {[%emt 0:06:35]} Na5 {[%emt 0:00:40]} 14. f3 {[%emt 0:10:24]} exf3 {[%emt 0:04:59]} 15. Nxf3 {[%emt 0:00:50]} Nc4 {[%emt 0:00:14]} 16. Bxc4 {[%emt 0:01:07]} Qxc4 {[%emt 0:00:05]} 17. Bh6 {[%emt 0:01:17]} Bd7 {[%emt 0:14:15]} 18. Bxg7 {[%emt 0:02:50]} Kxg7 {[%emt 0:00:01]} 19. Qf4 {[%emt 0:03:51]} Qxc3 {[%emt 0:03:39]} 20. Qxd6 {[%emt 0:03:58]} Qe3+ {[%emt 0:02:59]} 21. Kh1 {[%emt 0:00:31]} Qe6 {[%emt 0:00:02]} 22. Qf4 {[%emt 0:09:14]} Rae8 {[%emt 0:05:09]} 23. Ng5 {[%emt 0:06:31]} Qe7 {[%emt 0:00:47]} 24. h3 {[%emt 0:04:09]} h6 {[%emt 0:03:08]} 25. Nf3 {[%emt 0:00:28]} Qe4 {[%emt 0:00:27]} 26. Qd2 {[%emt 0:06:38]} Bb5 {[%emt 0:10:13]} 27. Rfe1 {[%emt 0:02:45]} Qd5 {[%emt 0:00:48]} 28. c3 {[%emt 0:01:06]} Bc6 {[%emt 0:06:12]} 29. Ne5 {[%emt 0:01:25]} f6 {[%emt 0:01:23]} 30. c4 {[%emt 0:00:45]} Qxg2+ {[%emt 0:01:24]} 31. Qxg2 {[%emt 0:00:35]} Bxg2+ {[%emt 0:00:07]} 32. Kxg2 {[%emt 0:00:07]} fxe5 {[%emt 0:00:05]} 33. dxe5 {[%emt 0:02:50]} Re7 {[%emt 0:00:59]} 34. Re4 {[%emt 0:00:58]} Rf5 {[%emt 0:01:43]} 35. Rd5 {[%emt 0:00:50]} Kf7 {[%emt 0:01:51]} 36. Kg3 {[%emt 0:01:29]} Ke8 {[%emt 0:03:50]} 37. Rd6 {[%emt 0:05:44]} Rg5+ {[%emt 0:05:51]} 38. Kf3 {[%emt 0:02:43]} Rf7+ {[%emt 0:02:09]} 39. Ke3 {[%emt 0:00:46]} Rg3+ {[%emt 0:00:36]} 40. Kd4 {[%emt 0:00:08]} Rd7 {[%emt 0:01:25]} 41. h4 {[%emt 0:14:22]} Ke7 {[%emt 0:02:26]} 42. c5 {[%emt 0:00:50]} Rg1 {[%emt 0:09:59]} 43. Kc4 {[%emt 0:03:06]} Rc7 {[%emt 0:02:48]} 44. Kb5 {[%emt 0:04:26]} Rb1+ {[%emt 0:03:10]} 45. Rb4 {[%emt 0:00:36]} Rxb4+ {[%emt 0:01:23]} 46. Kxb4 {[%emt 0:00:05]} Rc6 {[%emt 0:00:06]} 47. Rd2 {[%emt 0:06:46]} Ke6 {[%emt 0:00:07]} 48. Re2 {[%emt 0:01:03]} Kd5 {[%emt 0:04:15]} 49. Re1 {[%emt 0:00:25]} g5 {[%emt 0:03:45]} 50. h5 {[%emt 0:01:02]} b6 {[%emt 0:03:07]} 51. cxb6 {[%emt 0:00:45]} Rxb6+ {[%emt 0:00:00]} 52. Ka5 {[%emt 0:00:22]} Re6 {[%emt 0:00:05]} 53. a4 {[%emt 0:01:11]} Kd4 {[%emt 0:01:23]} 54. Kb4 {[%emt 0:00:34]} Rxe5 {[%emt 0:02:33]} 55. Rd1+ {[%emt 0:00:13]} Ke3 {[%emt 0:00:20]} 56. Rd6 {[%emt 0:00:41]} a5+ {[%emt 0:01:06]} 57. Kc4 {[%emt 0:00:06]} g4 {[%emt 0:00:19]} 58. Rxh6 {[%emt 0:00:30]} g3 {[%emt 0:00:33]} 59. Rg6 {[%emt 0:00:16]} Kf2 {[%emt 0:00:06]} 60. Rf6+ {[%emt 0:01:57]} Kg1 {[%emt 0:00:02]} 61. h6 {[%emt 0:00:27]} Rh5 {[%emt 0:00:01]} 62. h7 {[%emt 0:01:05]} Rxh7 {[%emt 0:00:39]} 63. Rf5 {[%emt 0:00:15]} Ra7 {[%emt 0:02:05]} 64. Kb5 {[%emt 0:00:30]} g2 {[%emt 0:00:05]} 65. Kb6 {[%emt 0:00:13]} Ra8 {[%emt 0:00:11]} 66. Kb7 {[%emt 0:00:23]} Rg8 {[%emt 0:00:20]} 67. Rxa5 {[%emt 0:00:13]} Kh2 {[%emt 0:01:20]} 0-1